[Event "Titled Tuesday Blitz August 22 Early 2023"]
[White "Naroditsky, Daniel"]
[Black "Mekhane, Adam"]
[WhiteFideId "2026961"]
[BlackFideId "36050601"]
[WhiteElo "3206"]
[BlackElo "2515"]
[Result "1/2-1/2"]
[Round "1"]
[TimeControl "180+1"]
[Date "2023.08.22"]
[WhiteClock "0:00:02"]
[BlackClock "0:00:06"]
[Board "2"]

1. e4 {[%clk 0:03:00]}  e5 {[%clk 0:02:56]} 2. Nf3 {[%clk 0:03:00]}  Nc6 {[%clk 0:02:57]} 3. Nc3 {[%clk 0:03:01]}  Nf6 {[%clk 0:02:56]} 4. g3 {[%clk 0:03:00]}  g6 {[%clk 0:02:56]} 5. Bg2 {[%clk 0:03:00]}  Bg7 {[%clk 0:02:56]} 6. O-O {[%clk 0:03:01]}  O-O {[%clk 0:02:57]} 7. d3 {[%clk 0:03:01]}  d6 {[%clk 0:02:56]} 8. h3 {[%clk 0:03:02]}  h6 {[%clk 0:02:56]} 9. Be3 {[%clk 0:03:02]}  Nd7 {[%clk 0:02:52]} 10. Qd2 {[%clk 0:02:51]}  Kh7 {[%clk 0:02:52]} 11. d4 {[%clk 0:02:52]}  exd4 {[%clk 0:02:41]} 12. Nxd4 {[%clk 0:02:52]}  Nde5 {[%clk 0:02:36]} 13. Nxc6 {[%clk 0:02:22]}  bxc6 {[%clk 0:02:34]} 14. Qe2 {[%clk 0:02:17]}  a5 {[%clk 0:02:25]} 15. Rfd1 {[%clk 0:02:12]}  Ba6 {[%clk 0:02:24]} 16. Qe1 {[%clk 0:02:13]}  Rb8 {[%clk 0:02:08]} 17. b3 {[%clk 0:02:12]}  Qf6 {[%clk 0:02:06]} 18. f4 {[%clk 0:01:56]}  Nf3+ {[%clk 0:01:49]} 19. Bxf3 {[%clk 0:01:56]}  Qxc3 {[%clk 0:01:49]} 20. Qf2 {[%clk 0:01:40]}  c5 {[%clk 0:01:46]} 21. Rac1 {[%clk 0:01:27]}  a4 {[%clk 0:01:41]} 22. Kg2 {[%clk 0:01:23]}  axb3 {[%clk 0:01:22]} 23. cxb3 {[%clk 0:01:22]}  Qf6 {[%clk 0:01:16]} 24. e5 {[%clk 0:01:13]}  Qe7 {[%clk 0:00:55]} 25. Re1 {[%clk 0:01:07]}  Qd7 {[%clk 0:00:48]} 26. Rcd1 {[%clk 0:01:07]}  c4 {[%clk 0:00:46]} 27. Qc2 {[%clk 0:00:56]}  cxb3 {[%clk 0:00:43]} 28. axb3 {[%clk 0:00:57]}  Bb7 {[%clk 0:00:31]} 29. Bxb7 {[%clk 0:00:49]}  Rxb7 {[%clk 0:00:31]} 30. Rd3 {[%clk 0:00:35]}  Rfb8 {[%clk 0:00:25]} 31. Bf2 {[%clk 0:00:25]}  Kg8 {[%clk 0:00:16]} 32. Qd1 {[%clk 0:00:18]}  Rb5 {[%clk 0:00:15]} 33. exd6 {[%clk 0:00:17]}  cxd6 {[%clk 0:00:15]} 34. Rxd6 {[%clk 0:00:18]}  Qb7+ {[%clk 0:00:15]} 35. Qf3 {[%clk 0:00:15]}  Qxf3+ {[%clk 0:00:14]} 36. Kxf3 {[%clk 0:00:16]}  Rxb3+ {[%clk 0:00:14]} 37. Re3 {[%clk 0:00:16]}  Rxe3+ {[%clk 0:00:13]} 38. Bxe3 {[%clk 0:00:17]}  Rb7 {[%clk 0:00:10]} 39. g4 {[%clk 0:00:16]}  Kh7 {[%clk 0:00:08]} 40. Rd5 {[%clk 0:00:14]}  Re7 {[%clk 0:00:08]} 41. Bc5 {[%clk 0:00:14]}  Rc7 {[%clk 0:00:08]} 42. f5 {[%clk 0:00:13]}  gxf5 {[%clk 0:00:08]} 43. gxf5 {[%clk 0:00:12]}  Bf6 {[%clk 0:00:08]} 44. Be3 {[%clk 0:00:10]}  Rb7 {[%clk 0:00:06]} 45. Rd6 {[%clk 0:00:11]}  Kg7 {[%clk 0:00:05]} 46. Rc6 {[%clk 0:00:08]}  h5 {[%clk 0:00:05]} 47. Bf2 {[%clk 0:00:03]}  Rb3+ {[%clk 0:00:05]} 48. Kg2 {[%clk 0:00:04]}  Rb2 {[%clk 0:00:05]} 49. Kg1 {[%clk 0:00:04]}  Rb1+ {[%clk 0:00:05]} 50. Kg2 {[%clk 0:00:05]}  Rb2 {[%clk 0:00:05]} 51. Kf1 {[%clk 0:00:03]}  Rb1+ {[%clk 0:00:05]} 52. Ke2 {[%clk 0:00:03]}  Rb2+ {[%clk 0:00:05]} 53. Ke3 {[%clk 0:00:03]}  Rb3+ {[%clk 0:00:05]} 54. Ke2 {[%clk 0:00:03]}  Rb2+ {[%clk 0:00:06]} 55. Kf1 {[%clk 0:00:02]}  Rb1+ {[%clk 0:00:06]} 56. Kg2 {[%clk 0:00:02]}  Rb2 {[%clk 0:00:06]} 1/2-1/2


[Site "https://www.chess.com"]

[Event "Titled Tuesday Blitz August 22 Early 2023"]
[White "Warchol, Kamil"]
[Black "Grischuk, Alexander"]
[WhiteFideId "21858241"]
[BlackFideId "4126025"]
[WhiteElo "2504"]
[BlackElo "3037"]
[Result "0-1"]
[Round "1"]
[TimeControl "180+1"]
[Date "2023.08.22"]
[WhiteClock "0:00:56"]
[BlackClock "0:00:55"]
[Board "11"]

1. e4 {[%clk 0:03:00]}  e6 {[%clk 0:02:52]} 2. d4 {[%clk 0:02:57]}  d5 {[%clk 0:02:51]} 3. Nd2 {[%clk 0:02:57]}  c5 {[%clk 0:02:50]} 4. Ngf3 {[%clk 0:02:56]}  cxd4 {[%clk 0:02:49]} 5. Nxd4 {[%clk 0:02:57]}  Nf6 {[%clk 0:02:49]} 6. exd5 {[%clk 0:02:53]}  Nxd5 {[%clk 0:02:49]} 7. N2f3 {[%clk 0:02:26]}  Be7 {[%clk 0:02:34]} 8. Be2 {[%clk 0:02:21]}  O-O {[%clk 0:02:33]} 9. O-O {[%clk 0:02:21]}  b6 {[%clk 0:02:00]} 10. c4 {[%clk 0:02:13]}  Nf6 {[%clk 0:02:00]} 11. b3 {[%clk 0:02:13]}  Bb7 {[%clk 0:02:00]} 12. Bb2 {[%clk 0:02:13]}  Nbd7 {[%clk 0:01:59]} 13. Nb5 {[%clk 0:02:06]}  Qb8 {[%clk 0:01:55]} 14. Qc2 {[%clk 0:01:55]}  a6 {[%clk 0:01:50]} 15. Ba3 {[%clk 0:01:55]}  Nc5 {[%clk 0:01:41]} 16. Nc3 {[%clk 0:01:53]}  Ng4 {[%clk 0:01:28]} 17. g3 {[%clk 0:01:47]}  Ne5 {[%clk 0:01:22]} 18. Nxe5 {[%clk 0:01:43]}  Qxe5 {[%clk 0:01:23]} 19. Rad1 {[%clk 0:01:26]}  Qc7 {[%clk 0:01:11]} 20. Rd2 {[%clk 0:01:18]}  Bg5 {[%clk 0:01:09]} 21. f4 {[%clk 0:01:16]}  Bf6 {[%clk 0:01:07]} 22. Bb2 {[%clk 0:01:14]}  Rad8 {[%clk 0:01:04]} 23. Rfd1 {[%clk 0:01:13]}  Qc6 {[%clk 0:00:55]} 24. Rxd8 {[%clk 0:00:56]} 0-1


[Site "https://www.chess.com"]

[Event "Titled Tuesday Blitz August 22 Early 2023"]
[White "only_strong_moves"]
[Black "Bluebaum, Matthias"]
[BlackFideId "24651516"]
[WhiteElo "2504"]
[BlackElo "3022"]
[Result "0-1"]
[Round "1"]
[TimeControl "180+1"]
[Date "2023.08.22"]
[WhiteClock "0:00:00"]
[BlackClock "0:01:53"]
[Board "13"]

1. e4 {[%clk 0:03:00]}  e6 {[%clk 0:03:00]} 2. d4 {[%clk 0:03:00]}  d5 {[%clk 0:03:01]} 3. Nd2 {[%clk 0:02:59]}  c5 {[%clk 0:03:01]} 4. Ngf3 {[%clk 0:02:58]}  Nf6 {[%clk 0:03:01]} 5. exd5 {[%clk 0:02:53]}  Nxd5 {[%clk 0:03:02]} 6. Nb3 {[%clk 0:02:43]}  cxd4 {[%clk 0:02:59]} 7. Qxd4 {[%clk 0:02:36]}  Nc6 {[%clk 0:02:59]} 8. Bb5 {[%clk 0:02:32]}  Bd7 {[%clk 0:02:52]} 9. Bxc6 {[%clk 0:02:32]}  Bxc6 {[%clk 0:02:53]} 10. O-O {[%clk 0:02:30]}  Nf6 {[%clk 0:02:48]} 11. Ne5 {[%clk 0:02:09]}  Qxd4 {[%clk 0:02:37]} 12. Nxd4 {[%clk 0:02:10]}  Be4 {[%clk 0:02:38]} 13. Nb5 {[%clk 0:01:51]}  Rc8 {[%clk 0:02:35]} 14. c4 {[%clk 0:01:18]}  a6 {[%clk 0:02:33]} 15. Nc3 {[%clk 0:01:18]}  Bf5 {[%clk 0:02:32]} 16. Bf4 {[%clk 0:01:12]}  Bb4 {[%clk 0:02:29]} 17. Na4 {[%clk 0:00:59]}  O-O {[%clk 0:02:29]} 18. Rfd1 {[%clk 0:00:58]}  Bc2 {[%clk 0:02:28]} 19. Nb6 {[%clk 0:00:55]}  Rcd8 {[%clk 0:02:20]} 20. Rdc1 {[%clk 0:00:40]}  Bf5 {[%clk 0:02:17]} 21. a3 {[%clk 0:00:34]}  Bc5 {[%clk 0:02:16]} 22. Na4 {[%clk 0:00:33]}  Bd4 {[%clk 0:02:17]} 23. Nf3 {[%clk 0:00:25]}  Ne4 {[%clk 0:02:12]} 24. Nxd4 {[%clk 0:00:25]}  Rxd4 {[%clk 0:02:11]} 25. Be3 {[%clk 0:00:24]}  Rd3 {[%clk 0:02:09]} 26. Nc5 {[%clk 0:00:15]}  Rxe3 {[%clk 0:02:09]} 27. Nxe6 {[%clk 0:00:07]}  Bxe6 {[%clk 0:02:00]} 28. fxe3 {[%clk 0:00:07]}  Nc5 {[%clk 0:02:01]} 29. Rc3 {[%clk 0:00:06]}  Rd8 {[%clk 0:02:00]} 30. b4 {[%clk 0:00:06]}  Ne4 {[%clk 0:02:00]} 31. Rcc1 {[%clk 0:00:04]}  h5 {[%clk 0:01:58]} 32. Rd1 {[%clk 0:00:04]}  Rc8 {[%clk 0:01:56]} 33. c5 {[%clk 0:00:04]}  Nc3 {[%clk 0:01:52]} 34. Rd3 {[%clk 0:00:03]}  Nd5 {[%clk 0:01:53]} 35. e4 {[%clk 0:00:03]}  Nf4 {[%clk 0:01:53]} 36. Rf3 {[%clk 0:00:03]}  Ng6 {[%clk 0:01:52]} 37. Rd3 {[%clk 0:00:01]}  Ne5 {[%clk 0:01:52]} 38. Rd6 {[%clk 0:00:01]}  Nc4 {[%clk 0:01:51]} 39. Rd4 {[%clk 0:00:02]}  b6 {[%clk 0:01:52]} 40. cxb6 {[%clk 0:00:01]}  Nxb6 {[%clk 0:01:53]} 41. Rd6 {[%clk 0:00:02]}  Nc4 {[%clk 0:01:51]} 42. Rxa6 {[%clk 0:00:02]}  Ne3 {[%clk 0:01:52]} 43. Rd6 {[%clk 0:00:00]}  Rc2 {[%clk 0:01:53]} 0-1


[Site "https://www.chess.com"]

[Event "Titled Tuesday Blitz August 22 Early 2023"]
[White "Sadhwani, Raunak"]
[Black "Bazilius, Augustinas"]
[WhiteFideId "35093487"]
[BlackFideId "12832251"]
[WhiteElo "3021"]
[BlackElo "2503"]
[Result "1-0"]
[Round "1"]
[TimeControl "180+1"]
[Date "2023.08.22"]
[WhiteClock "0:00:53"]
[BlackClock "0:00:00"]
[Board "14"]

1. b3 {[%clk 0:02:55]}  Nf6 {[%clk 0:02:56]} 2. Bb2 {[%clk 0:02:56]}  g6 {[%clk 0:02:56]} 3. Nf3 {[%clk 0:02:56]}  Bg7 {[%clk 0:02:56]} 4. g3 {[%clk 0:02:57]}  O-O {[%clk 0:02:55]} 5. Bg2 {[%clk 0:02:57]}  d6 {[%clk 0:02:56]} 6. d4 {[%clk 0:02:54]}  Nbd7 {[%clk 0:02:48]} 7. O-O {[%clk 0:02:54]}  e5 {[%clk 0:02:49]} 8. dxe5 {[%clk 0:02:54]}  Ng4 {[%clk 0:02:49]} 9. c4 {[%clk 0:02:54]}  Ngxe5 {[%clk 0:02:47]} 10. Nc3 {[%clk 0:02:54]}  Nxf3+ {[%clk 0:02:43]} 11. exf3 {[%clk 0:02:55]}  Nb6 {[%clk 0:02:35]} 12. f4 {[%clk 0:02:54]}  c6 {[%clk 0:02:33]} 13. Qd2 {[%clk 0:02:51]}  d5 {[%clk 0:02:22]} 14. cxd5 {[%clk 0:02:47]}  Nxd5 {[%clk 0:02:21]} 15. Nxd5 {[%clk 0:02:43]}  Bxb2 {[%clk 0:02:22]} 16. Qxb2 {[%clk 0:02:42]}  cxd5 {[%clk 0:02:21]} 17. Rad1 {[%clk 0:02:39]}  Be6 {[%clk 0:02:21]} 18. Rd4 {[%clk 0:02:40]}  Qa5 {[%clk 0:01:56]} 19. Rfd1 {[%clk 0:02:38]}  Rfd8 {[%clk 0:01:55]} 20. h3 {[%clk 0:02:32]}  h5 {[%clk 0:01:50]} 21. Qe2 {[%clk 0:02:25]}  Re8 {[%clk 0:01:23]} 22. Qb2 {[%clk 0:02:14]}  Rad8 {[%clk 0:01:08]} 23. Ra4 {[%clk 0:02:14]}  Qb6 {[%clk 0:01:05]} 24. Qf6 {[%clk 0:02:14]}  Rd6 {[%clk 0:00:56]} 25. Qg5 {[%clk 0:02:05]}  a6 {[%clk 0:00:42]} 26. Rad4 {[%clk 0:02:05]}  Qd8 {[%clk 0:00:37]} 27. Qxd8 {[%clk 0:01:49]}  Rexd8 {[%clk 0:00:38]} 28. Rc1 {[%clk 0:01:45]}  Rc6 {[%clk 0:00:37]} 29. Rxc6 {[%clk 0:01:24]}  bxc6 {[%clk 0:00:38]} 30. b4 {[%clk 0:01:24]}  Kf8 {[%clk 0:00:35]} 31. Bf1 {[%clk 0:01:25]}  Ra8 {[%clk 0:00:17]} 32. Rd3 {[%clk 0:01:25]}  Ke7 {[%clk 0:00:15]} 33. Ra3 {[%clk 0:01:25]}  Kd6 {[%clk 0:00:16]} 34. Ra5 {[%clk 0:01:18]}  Bc8 {[%clk 0:00:11]} 35. f3 {[%clk 0:01:13]}  Kc7 {[%clk 0:00:10]} 36. Kf2 {[%clk 0:01:13]}  Kb6 {[%clk 0:00:11]} 37. g4 {[%clk 0:01:13]}  hxg4 {[%clk 0:00:10]} 38. hxg4 {[%clk 0:01:14]}  Bb7 {[%clk 0:00:07]} 39. a3 {[%clk 0:01:11]}  Re8 {[%clk 0:00:08]} 40. Bd3 {[%clk 0:01:10]}  Rc8 {[%clk 0:00:06]} 41. Rc5 {[%clk 0:01:09]}  Rh8 {[%clk 0:00:05]} 42. Ke3 {[%clk 0:01:03]}  Rh1 {[%clk 0:00:04]} 43. Kd4 {[%clk 0:01:04]}  Re1 {[%clk 0:00:04]} 44. Rc2 {[%clk 0:00:53]}  a5 {[%clk 0:00:04]} 45. Rh2 {[%clk 0:00:54]}  axb4 {[%clk 0:00:04]} 46. axb4 {[%clk 0:00:54]}  Re7 {[%clk 0:00:03]} 47. Rh7 {[%clk 0:00:54]}  Ba6 {[%clk 0:00:00]} 48. Bxg6 {[%clk 0:00:53]} 1-0


[Site "https://www.chess.com"]

[Event "Titled Tuesday Blitz August 22 Early 2023"]
[White "Kuzmin, Roman"]
[Black "Le, Tuan Minh"]
[WhiteFideId "44134932"]
[BlackFideId "12401153"]
[WhiteElo "2503"]
[BlackElo "3007"]
[Result "0-1"]
[Round "1"]
[TimeControl "180+1"]
[Date "2023.08.22"]
[WhiteClock "0:00:18"]
[BlackClock "0:00:06"]
[Board "15"]

1. e4 {[%clk 0:03:00]}  c5 {[%clk 0:02:53]} 2. Nf3 {[%clk 0:03:00]}  Nf6 {[%clk 0:02:52]} 3. Nc3 {[%clk 0:02:48]}  d5 {[%clk 0:02:51]} 4. exd5 {[%clk 0:02:49]}  Nxd5 {[%clk 0:02:52]} 5. a4 {[%clk 0:02:47]}  Nc6 {[%clk 0:02:35]} 6. Bc4 {[%clk 0:02:42]}  Ndb4 {[%clk 0:02:30]} 7. O-O {[%clk 0:02:40]}  Bf5 {[%clk 0:02:27]} 8. d3 {[%clk 0:02:39]}  e6 {[%clk 0:02:28]} 9. Bf4 {[%clk 0:02:34]}  Be7 {[%clk 0:02:24]} 10. Ne4 {[%clk 0:02:24]}  O-O {[%clk 0:02:16]} 11. c3 {[%clk 0:02:20]}  Nd5 {[%clk 0:02:14]} 12. Bg3 {[%clk 0:02:21]}  Rc8 {[%clk 0:02:12]} 13. Qe2 {[%clk 0:02:13]}  h6 {[%clk 0:02:10]} 14. Rad1 {[%clk 0:02:13]}  Qa5 {[%clk 0:01:57]} 15. Bb3 {[%clk 0:02:11]}  Rfd8 {[%clk 0:01:48]} 16. Bc2 {[%clk 0:02:06]}  Qb6 {[%clk 0:01:45]} 17. Bb1 {[%clk 0:01:54]}  Qb3 {[%clk 0:01:36]} 18. Qc2 {[%clk 0:01:54]}  Qxc2 {[%clk 0:01:33]} 19. Bxc2 {[%clk 0:01:55]}  Nf6 {[%clk 0:01:28]} 20. Nfd2 {[%clk 0:01:22]}  b6 {[%clk 0:01:24]} 21. Nc4 {[%clk 0:01:19]}  Bg6 {[%clk 0:01:19]} 22. h3 {[%clk 0:01:08]}  Rd7 {[%clk 0:01:15]} 23. f3 {[%clk 0:01:00]}  Rcd8 {[%clk 0:01:12]} 24. Rfe1 {[%clk 0:00:56]}  Nd5 {[%clk 0:01:07]} 25. a5 {[%clk 0:00:48]}  Nxa5 {[%clk 0:01:03]} 26. Nxa5 {[%clk 0:00:48]}  bxa5 {[%clk 0:01:04]} 27. Ra1 {[%clk 0:00:49]}  Rb7 {[%clk 0:00:54]} 28. Reb1 {[%clk 0:00:41]}  Ne3 {[%clk 0:00:53]} 29. Ba4 {[%clk 0:00:36]}  Rxd3 {[%clk 0:00:53]} 30. Kf2 {[%clk 0:00:24]}  Nc4 {[%clk 0:00:50]} 31. b3 {[%clk 0:00:23]}  Bxe4 {[%clk 0:00:43]} 32. fxe4 {[%clk 0:00:23]}  Nd2 {[%clk 0:00:44]} 33. Ke2 {[%clk 0:00:18]}  Rxg3 {[%clk 0:00:44]} 34. Kxd2 {[%clk 0:00:18]}  Rxg2+ {[%clk 0:00:43]} 35. Kd3 {[%clk 0:00:19]}  Rg3+ {[%clk 0:00:37]} 36. Kc4 {[%clk 0:00:20]}  Rxh3 {[%clk 0:00:38]} 37. Rc1 {[%clk 0:00:20]}  Rb6 {[%clk 0:00:34]} 38. Bd7 {[%clk 0:00:19]}  Re3 {[%clk 0:00:34]} 39. Rxa5 {[%clk 0:00:15]}  Rxe4+ {[%clk 0:00:34]} 40. Kd3 {[%clk 0:00:16]}  Rh4 {[%clk 0:00:32]} 41. Rxa7 {[%clk 0:00:17]}  Bf6 {[%clk 0:00:29]} 42. Be8 {[%clk 0:00:15]}  Rd6+ {[%clk 0:00:28]} 43. Ke2 {[%clk 0:00:15]}  Rh2+ {[%clk 0:00:23]} 44. Kf3 {[%clk 0:00:15]}  Rd3+ {[%clk 0:00:08]} 45. Ke4 {[%clk 0:00:16]}  Rhh3 {[%clk 0:00:05]} 46. Bxf7+ {[%clk 0:00:16]}  Kh7 {[%clk 0:00:05]} 47. Bxe6 {[%clk 0:00:16]}  Rhe3+ {[%clk 0:00:05]} 48. Kf5 {[%clk 0:00:15]}  Re5+ {[%clk 0:00:05]} 49. Kf4 {[%clk 0:00:16]}  Rxe6 {[%clk 0:00:05]} 50. Rg1 {[%clk 0:00:16]}  Bg5+ {[%clk 0:00:05]} 51. Kf5 {[%clk 0:00:16]}  Rf6+ {[%clk 0:00:06]} 52. Ke5 {[%clk 0:00:17]}  Rxc3 {[%clk 0:00:06]} 53. b4 {[%clk 0:00:17]}  cxb4 {[%clk 0:00:06]} 54. Rd1 {[%clk 0:00:18]}  Rc5+ {[%clk 0:00:05]} 55. Kd4 {[%clk 0:00:18]}  Rd6+ {[%clk 0:00:05]} 56. Kxc5 {[%clk 0:00:18]}  Rxd1 {[%clk 0:00:06]} 0-1


[Site "https://www.chess.com"]

[Event "Titled Tuesday Blitz August 22 Early 2023"]
[White "Bilan, Danila"]
[Black "Xiong, Jeffery"]
[WhiteFideId "24161918"]
[BlackFideId "2047640"]
[WhiteElo "2500"]
[BlackElo "2991"]
[Result "0-1"]
[Round "1"]
[TimeControl "180+1"]
[Date "2023.08.22"]
[WhiteClock "0:00:18"]
[BlackClock "0:01:50"]
[Board "19"]

1. d4 {[%clk 0:03:00]}  d5 {[%clk 0:02:59]} 2. Nf3 {[%clk 0:03:00]}  Nf6 {[%clk 0:02:58]} 3. c4 {[%clk 0:02:58]}  e6 {[%clk 0:02:58]} 4. Nc3 {[%clk 0:02:56]}  dxc4 {[%clk 0:02:58]} 5. e3 {[%clk 0:02:55]}  a6 {[%clk 0:02:58]} 6. Bxc4 {[%clk 0:02:54]}  b5 {[%clk 0:02:58]} 7. Be2 {[%clk 0:02:50]}  Bb7 {[%clk 0:02:59]} 8. a3 {[%clk 0:02:49]}  Nbd7 {[%clk 0:02:59]} 9. O-O {[%clk 0:02:42]}  c5 {[%clk 0:02:59]} 10. dxc5 {[%clk 0:02:42]}  Bxc5 {[%clk 0:03:00]} 11. b4 {[%clk 0:02:42]}  Be7 {[%clk 0:02:54]} 12. Bb2 {[%clk 0:02:40]}  O-O {[%clk 0:02:54]} 13. Nd4 {[%clk 0:02:23]}  Nb6 {[%clk 0:02:51]} 14. Bf3 {[%clk 0:02:16]}  Bxf3 {[%clk 0:02:50]} 15. Qxf3 {[%clk 0:02:17]}  Nc4 {[%clk 0:02:50]} 16. Nc6 {[%clk 0:01:56]}  Qe8 {[%clk 0:02:49]} 17. Nxe7+ {[%clk 0:01:56]}  Qxe7 {[%clk 0:02:49]} 18. Nd1 {[%clk 0:01:57]}  Nd2 {[%clk 0:02:46]} 19. Qg3 {[%clk 0:01:43]}  Nxf1 {[%clk 0:02:44]} 20. Kxf1 {[%clk 0:01:44]}  Rfd8 {[%clk 0:02:25]} 21. Bd4 {[%clk 0:01:37]}  Rac8 {[%clk 0:02:20]} 22. Nc3 {[%clk 0:01:36]}  Ne8 {[%clk 0:02:00]} 23. Ne4 {[%clk 0:01:23]}  f6 {[%clk 0:02:00]} 24. Nc5 {[%clk 0:01:14]}  e5 {[%clk 0:01:58]} 25. Bc3 {[%clk 0:01:13]}  Qf7 {[%clk 0:01:57]} 26. Qg4 {[%clk 0:01:03]}  Nd6 {[%clk 0:01:57]} 27. Rd1 {[%clk 0:00:57]}  Nb7 {[%clk 0:01:55]} 28. Rxd8+ {[%clk 0:00:44]}  Rxd8 {[%clk 0:01:55]} 29. g3 {[%clk 0:00:35]}  Nxc5 {[%clk 0:01:50]} 30. bxc5 {[%clk 0:00:36]}  Qc4+ {[%clk 0:01:49]} 31. Qxc4+ {[%clk 0:00:35]}  bxc4 {[%clk 0:01:50]} 32. Ke2 {[%clk 0:00:34]}  Kf7 {[%clk 0:01:50]} 33. Ba5 {[%clk 0:00:31]}  Rd3 {[%clk 0:01:50]} 34. c6 {[%clk 0:00:28]}  Ke6 {[%clk 0:01:50]} 35. Bb4 {[%clk 0:00:28]}  e4 {[%clk 0:01:49]} 36. f3 {[%clk 0:00:25]}  f5 {[%clk 0:01:50]} 37. g4 {[%clk 0:00:25]}  g6 {[%clk 0:01:50]} 38. h4 {[%clk 0:00:18]}  c3 {[%clk 0:01:50]} 0-1


[Site "https://www.chess.com"]

[Event "Titled Tuesday Blitz August 22 Early 2023"]
[White "NovozhilovSemen"]
[Black "Svane, Rasmus"]
[BlackFideId "4657101"]
[WhiteElo "2500"]
[BlackElo "2975"]
[Result "0-1"]
[Round "1"]
[TimeControl "180+1"]
[Date "2023.08.22"]
[WhiteClock "0:00:13"]
[BlackClock "0:00:08"]
[Board "21"]

1. d4 {[%clk 0:03:00]}  Nf6 {[%clk 0:02:56]} 2. Nf3 {[%clk 0:03:00]}  d5 {[%clk 0:02:54]} 3. c4 {[%clk 0:03:00]}  e6 {[%clk 0:02:54]} 4. g3 {[%clk 0:03:00]}  Bd6 {[%clk 0:02:52]} 5. Bg2 {[%clk 0:03:00]}  O-O {[%clk 0:02:52]} 6. O-O {[%clk 0:03:00]}  Nc6 {[%clk 0:02:52]} 7. Nc3 {[%clk 0:02:44]}  dxc4 {[%clk 0:02:50]} 8. Qa4 {[%clk 0:02:44]}  e5 {[%clk 0:02:42]} 9. Qxc4 {[%clk 0:02:36]}  exd4 {[%clk 0:02:38]} 10. Nxd4 {[%clk 0:02:36]}  Nxd4 {[%clk 0:02:27]} 11. Qxd4 {[%clk 0:02:37]}  Qe7 {[%clk 0:02:27]} 12. Bg5 {[%clk 0:02:34]}  Be5 {[%clk 0:02:20]} 13. Qe3 {[%clk 0:02:32]}  h6 {[%clk 0:01:59]} 14. Bxf6 {[%clk 0:02:14]}  Bxf6 {[%clk 0:01:40]} 15. Nd5 {[%clk 0:02:10]}  Qxe3 {[%clk 0:01:38]} 16. Nxf6+ {[%clk 0:02:11]}  gxf6 {[%clk 0:01:39]} 17. fxe3 {[%clk 0:02:11]}  Kg7 {[%clk 0:01:39]} 18. Rf4 {[%clk 0:02:11]}  Re8 {[%clk 0:01:37]} 19. Kf2 {[%clk 0:02:12]}  c6 {[%clk 0:01:32]} 20. Rd1 {[%clk 0:02:09]}  Be6 {[%clk 0:01:32]} 21. b3 {[%clk 0:02:10]}  Red8 {[%clk 0:01:28]} 22. Rfd4 {[%clk 0:02:10]}  Rxd4 {[%clk 0:01:23]} 23. exd4 {[%clk 0:02:08]}  f5 {[%clk 0:01:23]} 24. Ke3 {[%clk 0:02:06]}  Kf6 {[%clk 0:01:22]} 25. Rf1 {[%clk 0:02:06]}  Ke7 {[%clk 0:01:19]} 26. Rf4 {[%clk 0:02:03]}  a5 {[%clk 0:01:18]} 27. Bh3 {[%clk 0:01:38]}  a4 {[%clk 0:01:11]} 28. Bxf5 {[%clk 0:01:38]}  axb3 {[%clk 0:01:10]} 29. Bxe6 {[%clk 0:01:39]}  bxa2 {[%clk 0:00:48]} 30. Bxa2 {[%clk 0:01:38]}  Rxa2 {[%clk 0:00:49]} 31. Rh4 {[%clk 0:01:38]}  b5 {[%clk 0:00:35]} 32. Rxh6 {[%clk 0:01:38]}  Rc2 {[%clk 0:00:36]} 33. Kd3 {[%clk 0:01:36]}  Rc1 {[%clk 0:00:36]} 34. Kd2 {[%clk 0:01:30]}  Rc4 {[%clk 0:00:36]} 35. Kd3 {[%clk 0:01:30]}  Rc1 {[%clk 0:00:36]} 36. Rh5 {[%clk 0:00:46]}  Rd1+ {[%clk 0:00:27]} 37. Kc3 {[%clk 0:00:42]}  Rf1 {[%clk 0:00:20]} 38. e4 {[%clk 0:00:40]}  Rf3+ {[%clk 0:00:17]} 39. Kb4 {[%clk 0:00:39]}  Rd3 {[%clk 0:00:17]} 40. d5 {[%clk 0:00:37]}  Rd4+ {[%clk 0:00:15]} 41. Kc3 {[%clk 0:00:35]}  Rxe4 {[%clk 0:00:14]} 42. dxc6 {[%clk 0:00:35]}  Rc4+ {[%clk 0:00:14]} 43. Kd3 {[%clk 0:00:36]}  Rxc6 {[%clk 0:00:15]} 44. Rxb5 {[%clk 0:00:36]}  Kf6 {[%clk 0:00:15]} 45. Ke3 {[%clk 0:00:36]}  Kg6 {[%clk 0:00:16]} 46. Kf3 {[%clk 0:00:37]}  f5 {[%clk 0:00:13]} 47. h4 {[%clk 0:00:35]}  Rc3+ {[%clk 0:00:13]} 48. Kg2 {[%clk 0:00:35]}  Rc4 {[%clk 0:00:12]} 49. Rb6+ {[%clk 0:00:33]}  Kg7 {[%clk 0:00:11]} 50. h5 {[%clk 0:00:32]}  Rd4 {[%clk 0:00:11]} 51. Kh3 {[%clk 0:00:33]}  Rc4 {[%clk 0:00:11]} 52. Rg6+ {[%clk 0:00:27]}  Kf7 {[%clk 0:00:10]} 53. Ra6 {[%clk 0:00:25]}  Kg7 {[%clk 0:00:10]} 54. Ra5 {[%clk 0:00:25]}  Kf6 {[%clk 0:00:10]} 55. Ra6+ {[%clk 0:00:22]}  Kg5 {[%clk 0:00:09]} 56. h6 {[%clk 0:00:21]}  Rc7 {[%clk 0:00:09]} 57. Kg2 {[%clk 0:00:21]}  Rh7 {[%clk 0:00:09]} 58. Kf3 {[%clk 0:00:20]}  Rh8 {[%clk 0:00:09]} 59. Rb6 {[%clk 0:00:16]}  Rh7 {[%clk 0:00:10]} 60. Ra6 {[%clk 0:00:17]}  Rh8 {[%clk 0:00:08]} 61. Rb6 {[%clk 0:00:14]}  Rxh6 {[%clk 0:00:08]} 62. Ra6 {[%clk 0:00:13]}  Rxa6 {[%clk 0:00:08]} 0-1


[Site "https://www.chess.com"]

[Event "Titled Tuesday Blitz August 22 Early 2023"]
[White "Kevlishvili, Robby"]
[Black "feuervogel1000000"]
[WhiteFideId "1040634"]
[WhiteElo "2972"]
[BlackElo "2500"]
[Result "1-0"]
[Round "1"]
[TimeControl "180+1"]
[Date "2023.08.22"]
[WhiteClock "0:00:36"]
[BlackClock "0:01:05"]
[Board "22"]

1. Nf3 {[%clk 0:03:00]}  d5 {[%clk 0:02:57]} 2. g3 {[%clk 0:03:00]}  Nf6 {[%clk 0:02:57]} 3. Bg2 {[%clk 0:03:01]}  e6 {[%clk 0:02:54]} 4. O-O {[%clk 0:03:00]}  Be7 {[%clk 0:02:55]} 5. c4 {[%clk 0:02:58]}  Kf8 {[%clk 0:02:54]} 6. b3 {[%clk 0:02:57]}  b6 {[%clk 0:02:52]} 7. Bb2 {[%clk 0:02:56]}  Bb7 {[%clk 0:02:52]} 8. d4 {[%clk 0:02:54]}  Nbd7 {[%clk 0:02:52]} 9. Nbd2 {[%clk 0:02:54]}  Kg8 {[%clk 0:02:50]} 10. Rc1 {[%clk 0:02:53]}  h5 {[%clk 0:02:50]} 11. Ne5 {[%clk 0:02:51]}  Nxe5 {[%clk 0:02:46]} 12. dxe5 {[%clk 0:02:51]}  Nd7 {[%clk 0:02:46]} 13. cxd5 {[%clk 0:02:44]}  exd5 {[%clk 0:02:46]} 14. h4 {[%clk 0:02:28]}  Rh6 {[%clk 0:02:42]} 15. Nc4 {[%clk 0:02:18]}  c6 {[%clk 0:02:41]} 16. Ne3 {[%clk 0:02:13]}  Nc5 {[%clk 0:02:36]} 17. Nf5 {[%clk 0:02:11]}  Rh7 {[%clk 0:02:36]} 18. Ba3 {[%clk 0:02:05]}  Bf8 {[%clk 0:02:34]} 19. Nd4 {[%clk 0:01:50]}  Rc8 {[%clk 0:02:29]} 20. Bb2 {[%clk 0:01:46]}  Ne6 {[%clk 0:02:27]} 21. Nf5 {[%clk 0:01:38]}  g6 {[%clk 0:02:20]} 22. Nd6 {[%clk 0:01:13]}  Bxd6 {[%clk 0:02:18]} 23. exd6 {[%clk 0:01:14]}  Qxd6 {[%clk 0:02:19]} 24. Qd2 {[%clk 0:01:15]}  c5 {[%clk 0:02:15]} 25. Rfd1 {[%clk 0:01:14]}  Rd8 {[%clk 0:02:14]} 26. e3 {[%clk 0:01:08]}  f5 {[%clk 0:02:06]} 27. b4 {[%clk 0:01:01]}  Rhd7 {[%clk 0:02:03]} 28. bxc5 {[%clk 0:00:57]}  bxc5 {[%clk 0:02:03]} 29. Qa5 {[%clk 0:00:57]}  d4 {[%clk 0:02:02]} 30. exd4 {[%clk 0:00:54]}  cxd4 {[%clk 0:01:59]} 31. Bxb7 {[%clk 0:00:42]}  Rxb7 {[%clk 0:01:59]} 32. Ba3 {[%clk 0:00:39]}  Qd5 {[%clk 0:01:58]} 33. Qa6 {[%clk 0:00:37]}  Kh7 {[%clk 0:01:16]} 34. Rc6 {[%clk 0:00:37]}  Rb6 {[%clk 0:01:10]} 35. Qxa7+ {[%clk 0:00:37]}  Rd7 {[%clk 0:01:05]} 36. Qxb6 {[%clk 0:00:36]} 1-0


[Site "https://www.chess.com"]